fUSD/lending_fUSD_20241230
["ID","MTS","AMOUNT","RATE_DAILY","PERIOD"]
[347203423,1735571437095,-3003.71312797,0.000119,2]
[347203425,1735571437105,-1812.896085,0.000119,2]
[347203447,1735571437334,-579.1131891,0.000119,2]
[347203449,1735571437346,-487.25,0.000119,2]
[347203452,1735571437358,-4088.35702925,0.000119,2]
[347203454,1735571437370,-1085.50905,0.000119,2]
[347203499,1735571437920,-1580.91747505,0.000119,2]
[347203556,1735571438478,-501.7,0.00011601,2]
[347203558,1735571438487,-1800.17,0.000119,2]
[347203561,1735571438499,-16229.73404211,0.000119,2]
[347203563,1735571438509,-1300.0,0.000119,4]
[347203564,1735571438518,-150.0,0.00011905,2]
[347203566,1735571438528,-150.0,0.0001195,2]
[347203568,1735571438538,-150.0,0.00011973,2]
[347203570,1735571438547,-150.0,0.00011979,2]
[347203572,1735571438556,-150.29,0.00012,2]
[347203574,1735571438566,-450.0,0.00012,2]
[347203576,1735571438575,-150.0,0.00012004,2]
[347203578,1735571438585,-45226.0,0.00012007,2]
[347203580,1735571438595,-172.57903476,0.00012013,2]
[347203582,1735571438604,-150.0,0.00012052,2]
[347203584,1735571438614,-150.0,0.00012059,2]
[347203586,1735571438624,-150.0,0.00012077,2]
[347203588,1735571438633,-27071.39692314,0.00012087,2]
[347203590,1735571438644,-2928.59307686,0.00012087,2]
[347203592,1735571438653,-1679.05692314,0.00012099,7]
[347203599,1735571438707,-2075.34833668,0.00012099,7]
[347203601,1735571438718,-5677.25589989,0.00012099,7]
[347203603,1735571438729,-6454.18437007,0.00012099,7]
[347203605,1735571438740,-459.595,0.00012099,7]
[347203609,1735571438772,-14777.48947022,0.00012099,7]
[347203611,1735571438781,-150.0,0.00012113,2]
[347203613,1735571438791,-150.0,0.00012126,2]
[347203615,1735571438801,-200.0,0.0001214,2]
[347203617,1735571438810,-150.0,0.00012167,2]
[347203619,1735571438820,-429.34778484,0.00012178,2]
[347203621,1735571438830,-150.0,0.00012181,2]
[347203623,1735571438840,-150.0,0.00012199,2]
[347203626,1735571438850,-150.0,0.00012222,2]
[347203628,1735571438860,-150.0,0.00012273,2]
[347203629,1735571438871,-6103.1518,0.00012275,2]
[347203631,1735571438880,-180.0114,0.00012275,2]
[347203633,1735571438890,-1500.0,0.00012275,2]
[347203635,1735571438899,-150.0,0.00012276,2]
[347203638,1735571438909,-150.0,0.00012285,2]
[347203640,1735571438918,-150.0,0.0001233,2]
[347203642,1735571438928,-150.0,0.00012346,2]
[347203644,1735571438937,-151.972489,0.00012349,2]
[347203645,1735571438947,-1041.74,0.00012366,2]
[347203648,1735571438956,-7500.0,0.00012374,2]
[347203649,1735571438965,-5416.0,0.00012384,2]
[347203652,1735571438975,-150.0,0.00012385,2]
[347203653,1735571438984,-150.0,0.00012389,2]
[347203655,1735571438993,-2102.87546821,0.00012399,2]
[347203658,1735571439003,-2102.87546817,0.00012399,2]
[347203659,1735571439012,-2102.87546817,0.00012399,2]
[347203661,1735571439021,-2102.87546817,0.00012399,2]
[347203664,1735571439030,-2102.87546817,0.00012399,2]
[347203665,1735571439039,-2102.87546817,0.00012399,2]
[347203667,1735571439048,-2102.87546817,0.00012399,2]
[347203669,1735571439058,-1563.89860578,0.00012399,2]
[347203672,1735571439070,-538.97686239,0.00012399,2]
[347203674,1735571439078,-2102.87546817,0.00012399,2]
[347203676,1735571439088,-1420.63610095,0.00012399,2]
[347203678,1735571439097,-1420.63610092,0.00012399,2]
[347203680,1735571439106,-1420.63610092,0.00012399,2]
[347203682,1735571439117,-5000.0,0.000124,2]
[347203684,1735571439126,-1957.20508956,0.000124,2]
[347203686,1735571439136,-690.41791394,0.000124,2]
[347203688,1735571439145,-1885.09592875,0.000124,2]
[347203690,1735571439155,-1963.5204344,0.000124,2]
[347203692,1735571439167,-139.35503377,0.000124,2]
[347203694,1735571439176,-200.0,0.000124,4]
[347203696,1735571439185,-172.57903475,0.000124,2]
[347203698,1735571439194,-410.67593148,0.000124,2]
[347203708,1735571439287,-632.99781865,0.000124,2]
[347203711,1735571439297,-594.21612829,0.000124,2]
[347203713,1735571439309,-739.73230278,0.000124,2]
[347203715,1735571439320,-954.05401374,0.000124,2]
[347203717,1735571439330,-150.0,0.0001242,2]
[347203719,1735571439340,-150.0,0.00012439,2]
[347203721,1735571439350,-168.54,0.00012452,2]
[347203723,1735571439360,-500.0,0.00012473,2]
[347203725,1735571439370,-500.0,0.00012473,2]
[347203727,1735571439379,-500.0,0.00012473,2]
[347203729,1735571439389,-260.45669897,0.00012473,2]
[347203731,1735571439401,-158.84631914,0.00012473,2]
[347203733,1735571439411,-500.63964722,0.00012473,2]
[347203735,1735571439421,-88290.61423373,0.00012485,2]
[347203737,1735571439433,-15953.43127811,0.00012485,2]
[347203739,1735571439444,-598.22749464,0.00012485,2]
[347203741,1735571439455,-2196.92500435,0.00012485,2]
[347203744,1735571439466,-2876.43753823,0.00012485,2]
[347203747,1735571439486,-1067.9999996,0.00012485,2]
[347203751,1735571439518,-557.9782299,0.00012485,2]
[347203847,1735571440506,-638.10546048,0.000123,2]
[347203849,1735571440516,-1224.43877952,0.000124,2]
[347203851,1735571440528,-68.4101831,0.000124,2]
[347203853,1735571440538,-16433.44673444,0.00012485,2]
[347203856,1735571440552,-1042.36436997,0.00012485,2]
[347203858,1735571440564,-15347.92244726,0.00012485,2]
[347203860,1735571440577,-7313.95015099,0.00012485,2]
[347203862,1735571440590,-507.1871805,0.00012485,2]
[347203864,1735571440601,-1847.35466494,0.00012485,2]
[347203866,1735571440615,-342.01020607,0.00012485,2]
[347203869,1735571440627,-49.47728052,0.00012485,2]
[347203871,1735571440637,-4607.84133287,0.00012493,2]
[347203876,1735571440678,-2149.99923283,0.00012493,2]
[347203878,1735571440690,-4128.63986883,0.00012493,2]
[347203880,1735571440701,-3933.36463944,0.00012493,2]
[347203882,1735571440713,-2288.91045091,0.00012493,2]
[347203885,1735571440724,-438.37999999,0.00012493,2]
[347203887,1735571440735,-563.992002,0.00012493,2]
[347203889,1735571440748,-346.08150003,0.00012493,2]
[347203891,1735571440760,-11542.7909731,0.00012493,2]
[347203893,1735571440769,-173.28547371,0.00012493,2]
[347203922,1735571441035,-247.27710192,0.00012493,2]
[347203924,1735571441050,-150.0,0.00012493,2]
[347203926,1735571441059,-201.36416489,0.00012493,2]
[347203928,1735571441068,-488.18557031,0.00012499,2]
[347203930,1735571441077,-500.0,0.00012499,2]
[347203932,1735571441086,-376.76227181,0.00012499,2]
[347203934,1735571441095,-500.0,0.00012499,2]
[347203936,1735571441105,-1000.0,0.00012499,2]
[347203938,1735571441116,-1055.48808993,0.00012499,3]
[347203940,1735571441126,-1055.48808993,0.00012499,3]
[347203942,1735571441135,-1055.48808993,0.00012499,3]
[347203944,1735571441144,-1055.48808993,0.00012499,3]
[347203946,1735571441154,-1055.48808995,0.00012499,3]
[347203948,1735571441163,-856.39,0.00012499,2]
[347203950,1735571441173,-7500.0,0.00012499,2]
[347203952,1735571441183,-791.43382079,0.00012499,2]
[347203954,1735571441192,-2970.0,0.00012499,2]
[347203956,1735571441201,-10517.34312976,0.000125,2]
[347203958,1735571441210,-219207.37085809,0.000125,2]
[347203967,1735571441277,-7901.67657273,0.000125,2]
[347203970,1735571441289,-294.766356,0.000125,2]
[347203973,1735571441300,-45995.5808,0.000125,2]
[347203976,1735571441311,-33558.17119288,0.000125,2]
[347203981,1735571441350,-335.17470444,0.000125,2]
[347203983,1735571441362,-251.7931704,0.000125,2]
[347203987,1735571441392,-644.82818535,0.000125,2]
[347203989,1735571441406,-1086.00001,0.000125,2]
[347203991,1735571441417,-260.44,0.000125,2]
[347203993,1735571441428,-16676.36484492,0.000125,2]
[347203996,1735571441442,-6905.45253584,0.000125,2]
[347204000,1735571441470,-500.00608853,0.000125,2]
[347204002,1735571441484,-3333.15299988,0.000125,2]
[347204203,1735571443380,-999.7462721,0.00011987,2]
[347204206,1735571443391,-33188.94314799,0.00011987,2]
[347204210,1735571443403,-37980.71726413,0.00011987,2]
[347204225,1735571443464,-5566.45161578,0.00011987,2]
[347204227,1735571443473,-1420.63610092,0.00012399,2]
[347204229,1735571443483,-15644.60363859,0.00012493,2]
[347204231,1735571443495,-2177.02760022,0.00012493,2]
[347204234,1735571443507,-7714.896462,0.00012493,2]
[347204236,1735571443519,-4463.47229919,0.00012493,2]
[347204238,1735571443528,-37272.76870507,0.000125,2]
[347204240,1735571443539,-562.26516642,0.000125,2]
[347204243,1735571443558,-383.20020393,0.000125,2]
[347204245,1735571443569,-664.717,0.000125,2]
[347204247,1735571443580,-3939.859055,0.000125,2]
[347204249,1735571443591,-24010.25,0.000125,2]
[347204252,1735571443603,-2104024.00943715,0.000125,2]
[347204254,1735571443615,-15615.30407987,0.000125,2]
[347204256,1735571443628,-20252.04194209,0.000125,2]
[347204258,1735571443639,-24702.30326925,0.000125,2]
[347204263,1735571443674,-2516.16206871,0.000125,2]
[347204265,1735571443686,-1207.38541534,0.000125,2]
[347204267,1735571443698,-251.579918,0.000125,2]
[347204269,1735571443709,-578.58314681,0.000125,2]
[347204271,1735571443721,-468.8786624,0.000125,2]
[347204273,1735571443733,-459.4436244,0.000125,2]
[347204275,1735571443745,-578.349716,0.000125,2]
[347204278,1735571443757,-427.42,0.000125,2]
[347204280,1735571443769,-513.4034575,0.000125,2]
[347204282,1735571443781,-567.93,0.000125,2]
[347204284,1735571443792,-475.5,0.000125,2]
[347204287,1735571443804,-602.72741978,0.000125,2]
[347204289,1735571443815,-954.6,0.000125,2]
[347204291,1735571443827,-764.72434,0.000125,2]
[347204293,1735571443839,-316.49724398,0.000125,2]
[347204296,1735571443856,-4817.62646549,0.000125,2]
[347204298,1735571443870,-1074.54691655,0.000125,2]
[347204300,1735571443882,-4600.0,0.000125,2]
[347204308,1735571443993,-345.52999999,0.000125,2]
[347204337,1735571446496,-419.23634141,0.00012473,2]
[347204338,1735571446506,-3780.86182331,0.00012493,2]
[347204339,1735571446518,-4919.07120143,0.00012493,2]
[347204340,1735571446530,-279.03799999,0.00012493,2]
[347204341,1735571446542,-21021.02897527,0.00012493,2]
[347204342,1735571446551,-56843.18530344,0.000125,2]
[347204343,1735571446562,-729.12371714,0.000125,2]
[347204344,1735571446597,-923.54837236,0.000125,2]
[347204345,1735571446609,-5857.85659723,0.000125,2]
[347204346,1735571446623,-565.44614499,0.000125,2]
[347204347,1735571446635,-175389.60672001,0.000125,2]
[347204348,1735571446682,-740.40033588,0.00012499,2]
[347204349,1735571446694,-1937.59966412,0.00012499,2]
[347204350,1735571446703,-2013.18844062,0.000125,2]
[347204351,1735571446715,-50000.11973999,0.000125,2]
[347204352,1735571446931,-735.832,0.000125,2]
[347204353,1735571447091,-1804.53465591,0.000125,2]
[347204354,1735571447106,-254.25,0.000125,2]
[347204355,1735571447139,-71229.0,0.000125,2]
[347204356,1735571447150,-556.78398471,0.000125,2]
[347204357,1735571447161,-2946.36745992,0.000125,2]
[347204369,1735571448967,-1281.46614566,0.000125,2]
[347204370,1735571448980,-2396.963137,0.000125,2]
[347204371,1735571455228,554.34739387,0.00012968,10]
[347204372,1735571909389,1204.76,0.00010983,2]
[347204373,1735571946983,1000.0,0.00010599,2]
[347204374,1735572019244,500.0,0.00024963,60]
[347204375,1735572025785,1022.69,8.697e-05,2]
[347204376,1735572026017,1022.69,0.00010961,2]
[347204377,1735572050213,234.96,0.00010137,2]
[347204378,1735572059917,1070.28,0.00010641,2]
[347204379,1735572109440,499.52,0.0001072,2]
[347204380,1735572169622,250.88784764,0.00010934,2]
[347204382,1735572174700,253.16910791,0.00010934,2]
[347204383,1735572192310,163.83,0.00010706,2]
[347204384,1735572196347,204.332482,0.00010975,2]
[347204385,1735572197473,2003.38,0.00024963,60]
[347204386,1735572237250,1123.04,0.00010726,2]
[347204387,1735572325582,223.67,0.00010718,2]
[347204388,1735572377038,400.0,0.00010986,2]
[347204389,1735572385983,16438.73,0.00010959,2]
[347204391,1735572427146,-619.40887273,0.0001103,2]
[347204394,1735572449379,-250.0,0.0001113,2]
[347204395,1735572449404,-2.92306612,0.00011229,2]
[347204396,1735572452509,167.4,0.00010989,2]
[347204398,1735572489246,250.0,0.00010718,2]
[347204401,1735572512283,250.0,0.00010456,2]
[347204423,1735572548097,-177.47858505,0.00011029,2]
[347204424,1735572548118,-5659.24035292,0.00011129,2]
[347204425,1735572548141,-850.69693388,0.00011229,2]
[347204426,1735572548169,-150.0,0.00011244,2]
[347204427,1735572548191,-150.0,0.00011244,2]
[347204428,1735572548214,-150.13475743,0.00011244,2]
[347204429,1735572548236,-150.0,0.00011244,2]
[347204430,1735572548258,-150.0,0.00011244,2]
[347204431,1735572548279,-284.42890518,0.00011244,2]
[347204432,1735572548300,-150.0,0.00011244,2]
[347204433,1735572548321,-150.0,0.00011244,2]
[347204434,1735572548342,-158.70219522,0.00011244,2]
[347204435,1735572548363,-171.69550467,0.00011244,2]
[347204436,1735572548384,-150.05382669,0.00011244,2]
[347204437,1735572548405,-150.0,0.00011244,2]
[347204438,1735572548425,-155.81,0.00011261,2]
[347204439,1735572548446,-275.65,0.00011261,2]
[347204440,1735572548469,-150.0,0.00011269,2]
[347204441,1735572548491,-150.0,0.00011294,2]
[347204442,1735572548510,-14038.66,0.00011294,2]
[347204443,1735572548531,-808.37,0.00011294,2]
[347204444,1735572548552,-5442.66,0.00011294,2]
[347204445,1735572548573,-2988.52,0.00011294,2]
[347204446,1735572548594,-150.0,0.0001131,2]
[347204447,1735572548615,-150.99,0.0001131,2]
[347204448,1735572548636,-499.99,0.0001131,2]
[347204449,1735572548657,-150.99,0.0001131,2]
[347204450,1735572548679,-150.0,0.00011317,2]
[347204451,1735572548701,-150.0,0.00011319,2]
[347204452,1735572548724,-1510.68,0.00011319,2]
[347204453,1735572548746,-3591.06,0.00011319,2]
[347204454,1735572548766,-3474.68,0.00011319,2]
[347204455,1735572548788,-392.39,0.00011319,2]
[347204456,1735572548809,-1521.83,0.00011319,2]
[347204457,1735572548831,-9999.99,0.00011319,2]
[347204458,1735572548852,-327.6,0.00011319,2]
[347204459,1735572548873,-999.99,0.00011319,2]
[347204460,1735572548895,-1873.5,0.00011319,2]
[347204461,1735572548916,-9255.75,0.00011319,2]
[347204462,1735572548938,-60201.82947809,0.00011319,2]
[347204471,1735572561100,-1344.01052191,0.00011319,2]
[347204472,1735572561119,-1441.36,0.00011319,2]
[347204473,1735572561139,-9999.99,0.00011319,2]
[347204474,1735572561160,-1310.26,0.00011319,2]
[347204475,1735572561180,-2636.38,0.00011319,2]
[347204476,1735572561201,-299.99,0.00011319,2]
[347204477,1735572561223,-291.59,0.00011319,2]
[347204478,1735572561244,-21673.69078936,0.00011319,2]
[347204479,1735572561266,-150.0,0.00011344,2]
[347204480,1735572561288,-150.0,0.00011369,2]
[347204481,1735572561309,-150.0,0.00011375,2]
[347204482,1735572561330,-150.0,0.00011391,2]
[347204483,1735572561352,-150.0,0.00011394,2]
[347204484,1735572561374,-150.0,0.00011419,2]
[347204485,1735572561396,-1449.71,0.00011426,2]
[347204486,1735572561419,-2282.82,0.00011426,2]
[347204487,1735572561438,-2239.38092873,0.00011426,2]
[347204488,1735572575878,478.93,0.00010678,2]
[347204496,1735572623965,851.495454,0.0001,2]
[347204507,1735572631612,-600.0,0.00011219,2]
[347204509,1735572631624,-8040.33542829,0.00011219,2]
[347204510,1735572631633,-645.44144331,0.00011332,2]
[347204511,1735572631642,-6176.19653521,0.00011426,2]
[347204512,1735572631653,-471.77253606,0.00011426,2]
[347204513,1735572631663,-2282.82,0.00011429,2]
[347204514,1735572631673,-2282.82,0.00011432,2]
[347204515,1735572631682,-1377.6,0.00011432,2]
[347204516,1735572631692,-2282.82,0.00011435,2]
[347204517,1735572631701,-2282.82,0.00011438,2]
[347204518,1735572631711,-150.0,0.00011441,2]
[347204519,1735572631720,-2282.82,0.00011441,2]
[347204520,1735572631729,-150.0,0.00011444,2]
[347204521,1735572631738,-2282.82,0.00011444,2]
[347204522,1735572631747,-2282.82,0.00011447,2]
[347204523,1735572631760,-2282.82,0.0001145,2]
[347204524,1735572631769,-2282.82,0.00011453,2]
[347204525,1735572631779,-2282.82,0.00011456,2]
[347204526,1735572631788,-2282.82,0.00011459,2]
[347204527,1735572631797,-2282.82,0.00011462,2]
[347204528,1735572631806,-150.0,0.00011464,2]
[347204529,1735572631815,-2282.82,0.00011465,2]
[347204530,1735572631824,-2282.82,0.00011468,2]
[347204531,1735572631833,-150.0,0.00011469,2]
[347204532,1735572631842,-2282.82,0.00011471,2]
[347204533,1735572631851,-2282.82,0.00011474,2]
[347204534,1735572631860,-2282.82,0.00011477,2]
[347204535,1735572631870,-2282.82,0.0001148,2]
[347204536,1735572631879,-2282.82,0.00011483,2]
[347204537,1735572631888,-150.0,0.00011494,2]
[347204538,1735572631898,-3900.0,0.000115,4]
[347204539,1735572631908,-150.0,0.00011507,2]
[347204540,1735572631917,-2751.0,0.00011507,2]
[347204541,1735572631927,-150.0,0.00011519,2]
[347204542,1735572631936,-150.0,0.00011538,2]
[347204543,1735572631945,-150.0,0.00011544,2]
[347204544,1735572631955,-150.0,0.00011569,2]
[347204545,1735572631964,-150.0,0.00011573,2]
[347204546,1735572631974,-150.0,0.00011594,2]
[347204547,1735572631984,-7800.0,0.000116,4]
[347204548,1735572631995,-150.0,0.00011611,2]
[347204549,1735572632009,-150.0,0.00011619,2]
[347204550,1735572632019,-150.0,0.00011638,2]
[347204551,1735572632028,-150.0,0.00011644,2]
[347204552,1735572632038,-150.0,0.0001166,2]
[347204553,1735572632048,-150.0,0.00011669,2]
[347204554,1735572632057,-150.0,0.00011685,2]
[347204555,1735572632066,-150.0,0.00011694,2]
[347204556,1735572632076,-490.98,0.000117,2]
[347204557,1735572632086,-495.18,0.000117,2]
[347204559,1735572632095,-495.22,0.000117,2]
[347204560,1735572632104,-495.54,0.000117,2]
[347204562,1735572632114,-11700.0,0.000117,4]
[347204563,1735572632124,-192.91348954,0.000117,2]
[347204564,1735572632133,-150.0,0.00011704,2]
[347204565,1735572632143,-150.0,0.00011719,2]
[347204566,1735572632152,-22223.91,0.0001174,2]
[347204567,1735572632162,-150.0,0.00011744,2]
[347204568,1735572632172,-150.0,0.00011758,2]
[347204569,1735572632183,-771.32,0.00011763,2]
[347204570,1735572632193,-437.44,0.00011763,2]
[347204571,1735572632203,-150.0,0.00011769,2]
[347204572,1735572632213,-150.0,0.0001177,2]
[347204573,1735572632223,-150.0,0.00011794,2]
[347204574,1735572632232,-858.9046,0.00011798,2]
[347204575,1735572632242,-502.56,0.00011798,2]
[347204576,1735572632255,-15600.0,0.000118,4]
[347204577,1735572632264,-506.66,0.000118,2]
[347204580,1735572632273,-150.0,0.00011819,2]
[347204582,1735572632283,-150.0,0.00011832,2]
[347204585,1735572632292,-150.0,0.00011836,2]
[347204587,1735572632302,-150.0,0.00011844,2]
[347204589,1735572632312,-150.0,0.00011868,2]
[347204592,1735572632321,-150.0,0.00011868,2]
[347204593,1735572632330,-890.533,0.0001188,2]
[347204595,1735572632339,-150.0,0.00011893,2]
[347204597,1735572632348,-501.37,0.00011898,2]
[347204598,1735572632357,-19600.0,0.000119,4]
[347204600,1735572632367,-150.0,0.00011901,2]
[347204602,1735572632376,-150.0,0.00011905,2]
[347204604,1735572632385,-150.0,0.00011918,2]
[347204605,1735572632394,-1000.0,0.00011924,2]
[347204607,1735572632404,-150.0,0.00011943,2]
[347204609,1735572632413,-150.0,0.00011967,2]
[347204611,1735572632423,-150.0,0.00011968,2]
[347204613,1735572632432,-150.0,0.00011979,2]
[347204614,1735572632442,-53040.82173154,0.0001198,2]
[347204616,1735572632452,-150.0,0.00011993,2]
[347204618,1735572632461,-450.0,0.00012,2]
[347204619,1735572632470,-150.0,0.00012018,2]
[347204621,1735572632479,-150.0,0.00012033,2]
[347204623,1735572632489,-150.0,0.00012043,2]
[347204624,1735572632498,-163.83,0.00012044,2]
[347204626,1735572632511,-150.0,0.00012068,2]
[347204628,1735572632520,-6569.37,0.00012087,2]
[347204629,1735572632529,-150.0,0.00012093,2]
[347204631,1735572632539,-150.0,0.00012099,2]
[347204633,1735572632548,-150.0,0.00012118,2]
[347204635,1735572632558,-150.0,0.00012143,2]
[347204637,1735572632570,-150.0,0.00012164,2]
[347204638,1735572632580,-150.0,0.00012168,2]
[347204640,1735572632589,-150.0,0.00012193,2]
[347204642,1735572632598,-8529.0015,0.000122,2]
[347204644,1735572632607,-5000.0,0.000122,2]
[347204645,1735572632616,-1005.0,0.000122,2]
[347204647,1735572632625,-1000.0,0.000122,2]
[347204649,1735572632634,-429.34778484,0.00012215,2]
[347204651,1735572632643,-150.0,0.00012218,2]
[347204653,1735572632652,-418.54,0.00012227,2]
[347204654,1735572632662,-150.0,0.00012227,2]
[347204656,1735572632671,-150.0,0.00012227,2]
[347204658,1735572632680,-150.0,0.0001223,2]
[347204660,1735572632690,-150.0,0.00012243,2]
[347204661,1735572632699,-88827.0,0.00012244,2]
[347204663,1735572632707,-150.0,0.00012268,2]
[347204665,1735572632716,-150.0,0.00012293,2]
[347204667,1735572632725,-150.0,0.00012296,2]
[347204669,1735572632735,-235345.84,0.000123,2]
[347204670,1735572632744,-208.233,0.000123,2]
[347204672,1735572632757,-150.0,0.00012318,2]
[347204674,1735572632769,-150.0,0.00012343,2]
[347204676,1735572632780,-150.0,0.00012362,2]
[347204678,1735572632792,-4179.355,0.00012366,2]
[347204680,1735572632803,-150.0,0.00012368,2]
[347204682,1735572632815,-150.0,0.00012393,2]
[347204683,1735572632826,-467.05987333,0.00012399,2]
[347204685,1735572632837,-467.05987331,0.00012399,2]
[347204687,1735572632847,-467.05987331,0.00012399,2]
[347204689,1735572632857,-467.05987331,0.00012399,2]
[347204691,1735572632867,-467.05987331,0.00012399,2]
[347204693,1735572632877,-467.05987331,0.00012399,2]
[347204694,1735572632886,-467.05987331,0.00012399,2]
[347204696,1735572632896,-467.05987331,0.00012399,2]
[347204698,1735572632906,-467.05987331,0.00012399,2]
[347204700,1735572632915,-5576.91169907,0.00012399,2]
[347204702,1735572632925,-5576.91169903,0.00012399,2]
[347204704,1735572632934,-5576.91169903,0.00012399,2]
[347204705,1735572632943,-5576.91169903,0.00012399,2]
[347204707,1735572632953,-5576.91169903,0.00012399,2]
[347204709,1735572632962,-5576.91169903,0.00012399,2]
[347204711,1735572632972,-5576.91169903,0.00012399,2]
[347204713,1735572632981,-5576.91169903,0.00012399,2]
[347204714,1735572632991,-5576.91169903,0.00012399,2]
[347204716,1735572633005,-644.9154,0.000124,2]
[347204718,1735572633015,-1083.9231,0.000124,2]
[347204720,1735572633024,-434.79575306,0.000124,2]
[347204722,1735572633036,-1000.0,0.000124,2]
[347204724,1735572633046,-3900.0,0.000124,4]
[347204725,1735572633056,-5576.91169903,0.000124,2]
[347204727,1735572633066,-1000.0,0.000124,2]
[347204729,1735572633077,-645.44144331,0.000124,2]
[347204731,1735572633089,-467.05987331,0.000124,2]
[347204733,1735572633101,-150.0,0.00012418,2]
[347204750,1735572633427,-150.0,0.00012427,2]
[347204752,1735572633439,-150.0,0.00012443,2]
[347204754,1735572633449,-1688.0,0.00012466,2]
[347204756,1735572633460,-1652.0,0.00012466,2]
[347204758,1735572633470,-150.0,0.00012468,2]
[347204760,1735572633480,-500.0,0.00012473,2]
[347204762,1735572633490,-504.9994691,0.00012473,2]
[347204764,1735572633500,-151.93509486,0.00012473,2]
[347204766,1735572633513,-500.0,0.00012473,2]
[347204768,1735572633523,-500.0,0.00012473,2]
[347204770,1735572633533,-500.0,0.00012473,2]
[347204772,1735572633543,-15027.61290956,0.00012493,2]
[347204774,1735572633553,-151.0,0.00012493,2]
[347204776,1735572633563,-476587.88914758,0.00012493,2]
[347204778,1735572633573,-225.78117896,0.00012493,2]
[347204780,1735572633582,-186.45787988,0.00012493,2]
[347204782,1735572633592,-186.89385327,0.00012493,2]
[347204784,1735572633602,-237.18291264,0.00012493,2]
[347204786,1735572633613,-2522.0,0.00012497,2]
[347204788,1735572633622,-155392.77190847,0.00012497,2]
[347204790,1735572633632,-6666.12302,0.00012498,2]
[347204792,1735572633642,-725.79539594,0.00012499,3]
[347204794,1735572633652,-1120.2311025,0.00012499,3]
[347204796,1735572633661,-924.87,0.00012499,2]
[347204798,1735572633671,-586972.53390603,0.000125,2]
[347204801,1735572633692,-290.8,0.000125,2]
[347204804,1735572633710,-136749.12721316,0.000125,2]
[347204806,1735572633722,-4832.6189138,0.000125,2]
[347204808,1735572633734,-10674.93108026,0.000125,2]
[347204811,1735572633745,-28826.15553649,0.000125,2]
[347204813,1735572633759,-400.67,0.000125,2]
[347204815,1735572633771,-970.0,0.000125,2]
[347204819,1735572633807,-18404.1348,0.000125,2]
[347204822,1735572633819,-3320.7,0.000125,2]
[347204824,1735572633831,-4615.6,0.000125,2]
[347204826,1735572633844,-2301.0,0.000125,2]
[347204834,1735572633921,-9494.28148068,0.000125,2]
[347204837,1735572633934,-34995.93381571,0.000125,2]
[347204839,1735572633946,-41001.74009135,0.000125,2]
[347204841,1735572633959,-27199.18187186,0.000125,2]
[347204846,1735572634003,-439.8200001,0.000125,2]
[347204848,1735572634016,-1559.3669999,0.000125,2]
[347204850,1735572634029,-1655.708454,0.000125,2]
[347205091,1735572637450,-500.0,0.00012473,2]
[347205092,1735572637459,-217.81883764,0.000125,2]
[347205093,1735572637501,-8627.52567077,0.000125,2]
[347205094,1735572637512,-18953.50232923,0.000125,2]
[347205095,1735572637523,-324.95618585,0.000125,2]
[347205096,1735572637534,-5511.33242331,0.000125,2]
[347205097,1735572637550,-2669.85265,0.000125,2]
[347205098,1735572637586,-310.24010705,0.000125,2]
[347205099,1735572637597,-29333.30144401,0.000125,2]
[347205100,1735572637734,-601.499964,0.000125,2]
[347205101,1735572637746,-4262.30109402,0.000125,2]
[347205102,1735572637760,-687.85940694,0.000125,2]